fUSD/lending_fUSD_20250826
["ID","MTS","AMOUNT","RATE_DAILY","PERIOD"]
[381397331,1756185094470,-485.53,0.00016712,2]
[381397332,1756185094479,-776.55,0.00016712,2]
[381397333,1756185094489,-653.47,0.00016712,2]
[381397334,1756185094498,-1133.83,0.00016712,2]
[381397335,1756185094508,-400.0,0.00016712,2]
[381397336,1756185094517,-873.21,0.00016712,2]
[381397337,1756185094527,-2653.07,0.00016712,2]
[381397338,1756185094536,-1796.94,0.00016712,2]
[381397339,1756185094545,-638.38,0.00016712,2]
[381397340,1756185094555,-400.0,0.00016712,2]
[381397341,1756185094564,-400.0,0.00016712,2]
[381397342,1756185094574,-1246.11,0.00016712,2]
[381397343,1756185094583,-1042.94,0.00016712,2]
[381397344,1756185094593,-973.16,0.00016712,2]
[381397345,1756185094602,-1745.1,0.00016712,2]
[381397346,1756185094612,-400.0,0.00016712,2]
[381397347,1756185094621,-400.0,0.00016712,2]
[381397348,1756185094631,-974.02,0.00016712,2]
[381397349,1756185094641,-1306.94,0.00016712,2]
[381397350,1756185094650,-564.47,0.00016712,2]
[381397351,1756185094659,-1071.63,0.00016712,2]
[381397352,1756185094669,-400.0,0.00016712,2]
[381397353,1756185094678,-1298.36,0.00016712,2]
[381397354,1756185094687,-1308.0,0.00016712,2]
[381397355,1756185094696,-400.0,0.00016712,2]
[381397356,1756185094709,-400.0,0.00016712,2]
[381397357,1756185094719,-794.01,0.00016712,2]
[381397358,1756185094729,-1575.82,0.00016712,2]
[381397359,1756185094738,-873.76,0.00016712,2]
[381397360,1756185094750,-642.74,0.00016712,2]
[381397361,1756185094762,-486.46,0.00016712,2]
[381397362,1756185094773,-400.0,0.00016712,2]
[381397363,1756185094784,-400.0,0.00016712,2]
[381397364,1756185094795,-400.0,0.00016712,2]
[381397365,1756185094805,-400.0,0.00016712,2]
[381397366,1756185094814,-1383.52,0.00016712,2]
[381397367,1756185094824,-400.0,0.00016712,2]
[381397368,1756185094834,-14035.6,0.00016712,2]
[381397369,1756185094844,-1333.29,0.00016712,2]
[381397370,1756185094853,-1162.66,0.00016712,2]
[381397371,1756185094863,-1690.87,0.00016712,2]
[381397372,1756185094873,-468.31,0.00016712,2]
[381397373,1756185094883,-1347.3,0.00016712,2]
[381397374,1756185094892,-1850.27,0.00016712,2]
[381397375,1756185094902,-400.0,0.00016712,2]
[381397376,1756185094911,-400.0,0.00016712,2]
[381397377,1756185094920,-755.25,0.00016712,2]
[381397378,1756185094929,-508.94,0.00016712,2]
[381397379,1756185094939,-400.0,0.00016712,2]
[381397380,1756185094947,-400.0,0.00016712,2]
[381397381,1756185094957,-422.3,0.00016712,2]
[381397382,1756185094966,-400.0,0.00016712,2]
[381397383,1756185094975,-798.33,0.00016712,2]
[381397384,1756185094984,-820.45,0.00016712,2]
[381397385,1756185094993,-876.07,0.00016712,2]
[381397386,1756185095002,-1637.36,0.00016712,2]
[381397387,1756185095012,-702.22,0.00016712,2]
[381397388,1756185095022,-400.0,0.00016712,2]
[381397389,1756185095031,-1096.7,0.00016712,2]
[381397390,1756185095041,-1243.32,0.00016712,2]
[381397391,1756185095050,-451.22829819,0.00016712,2]
[381397392,1756185095059,-2388.43,0.00016712,2]
[381397393,1756185095068,-411.17,0.00016712,2]
[381397394,1756185095078,-1269.78,0.00016712,2]
[381397395,1756185095087,-776.3,0.00016712,2]
[381397396,1756185095096,-400.0,0.00016712,2]
[381397397,1756185095106,-400.0,0.00016712,2]
[381397398,1756185095115,-400.0,0.00016712,2]
[381397399,1756185095124,-833.87,0.00016712,2]
[381397400,1756185095133,-400.0,0.00016712,2]
[381397401,1756185095142,-1320.36,0.00016712,2]
[381397402,1756185095151,-400.0,0.00016712,2]
[381397403,1756185095162,-664.83,0.00016712,2]
[381397404,1756185095172,-1533.36,0.00016712,2]
[381397405,1756185095183,-1425.5,0.00016712,2]
[381397406,1756185095192,-875.73,0.00016712,2]
[381397407,1756185095201,-400.0,0.00016712,2]
[381397408,1756185095211,-400.0,0.00016712,2]
[381397409,1756185095221,-1006.43,0.00016712,2]
[381397410,1756185095231,-1254.63,0.00016712,2]
[381397411,1756185095240,-400.0,0.00016712,2]
[381397412,1756185095250,-1240.6,0.00016712,2]
[381397413,1756185095259,-294.04399951,0.00016712,2]
[381397414,1756185095269,-1671.71,0.00016712,2]
[381397415,1756185095280,-698.91,0.00016712,2]
[381397416,1756185095289,-1222.49,0.00016712,2]
[381397417,1756185095299,-4543.96,0.00016712,2]
[381397418,1756185095308,-400.0,0.00016712,2]
[381397419,1756185095318,-400.0,0.00016712,2]
[381397420,1756185095328,-504.63,0.00016712,2]
[381397421,1756185095338,-1088.96,0.00016712,2]
[381397422,1756185095348,-1822.56,0.00016712,2]
[381397423,1756185095358,-747.78,0.00016712,2]
[381397424,1756185095367,-271.32656064,0.00016712,2]
[381397425,1756185095377,-400.0,0.00016712,2]
[381397426,1756185095387,-171.14224223,0.00016712,2]
[381397427,1756185095396,-400.0,0.00016712,2]
[381397428,1756185095405,-400.0,0.00016712,2]
[381397429,1756185095415,-627.11,0.00016712,2]
[381397430,1756185095424,-660.33,0.00016712,2]
[381397431,1756185095434,-400.0,0.00016712,2]
[381397432,1756185095443,-400.0,0.00016712,2]
[381397433,1756185095452,-1047.06,0.00016712,2]
[381397434,1756185095462,-400.0,0.00016712,2]
[381397435,1756185095471,-1209.63,0.00016712,2]
[381397436,1756185095480,-400.0,0.00016712,2]
[381397437,1756185095490,-499.76,0.00016712,2]
[381397438,1756185095499,-1613.6,0.00016712,2]
[381397439,1756185095508,-1092.11,0.00016712,2]
[381397440,1756185095517,-2455.59,0.00016712,2]
[381397441,1756185095528,-1000.72,0.00016712,2]
[381397442,1756185095537,-746.01,0.00016712,2]
[381397443,1756185095547,-2351.64,0.00016712,2]
[381397444,1756185095555,-847.66,0.00016712,2]
[381397445,1756185095564,-857.55,0.00016712,2]
[381397446,1756185095574,-789.93,0.00016712,2]
[381397447,1756185095583,-424.44286469,0.00016712,2]
[381397448,1756185095591,-1208.51,0.00016712,2]
[381397449,1756185095600,-400.0,0.00016712,2]
[381397450,1756185095610,-400.0,0.00016712,2]
[381397451,1756185095619,-1175.13,0.00016712,2]
[381397452,1756185095628,-825.35,0.00016712,2]
[381397453,1756185095637,-1983.08,0.00016712,2]
[381397454,1756185095647,-559.42,0.00016712,2]
[381397455,1756185095656,-400.0,0.00016712,2]
[381397456,1756185095665,-1655.27,0.00016712,2]
[381397457,1756185095675,-740.89,0.00016712,2]
[381397458,1756185095684,-400.0,0.00016712,2]
[381397459,1756185095693,-616.31,0.00016712,2]
[381397460,1756185095704,-890.19,0.00016712,2]
[381397461,1756185095714,-1327.78,0.00016712,2]
[381397462,1756185095723,-436.96,0.00016712,2]
[381397463,1756185095733,-447.7754571,0.00016712,2]
[381397464,1756185095743,-732.16,0.00016712,2]
[381397465,1756185095752,-400.0,0.00016712,2]
[381397466,1756185095761,-1496.96,0.00016712,2]
[381397467,1756185095770,-400.0,0.00016712,2]
[381397468,1756185095780,-719.3,0.00016712,2]
[381397469,1756185095790,-505.33522204,0.00016712,2]
[381397470,1756185095799,-1097.31,0.00016712,2]
[381397471,1756185095808,-400.0,0.00016712,2]
[381397472,1756185095816,-1575.63,0.00016712,2]
[381397473,1756185095826,-400.0,0.00016712,2]
[381397474,1756185095835,-758.49,0.00016712,2]
[381397475,1756185095844,-400.0,0.00016712,2]
[381397476,1756185095853,-400.0,0.00016712,2]
[381397477,1756185095862,-566.6,0.00016712,2]
[381397478,1756185095871,-664.16,0.00016712,2]
[381397479,1756185095879,-1654.85,0.00016712,2]
[381397480,1756185095888,-474.93333658,0.00016712,2]
[381397481,1756185095898,-721.84,0.00016712,2]
[381397482,1756185095907,-166.12,0.00016712,2]
[381397483,1756185095916,-166.12,0.00016712,2]
[381397484,1756185095926,-166.12,0.00016712,2]
[381397485,1756185095936,-166.12,0.00016712,2]
[381397486,1756185095946,-166.12,0.00016712,2]
[381397487,1756185095955,-166.12,0.00016712,2]
[381397488,1756185095964,-166.12,0.00016712,2]
[381397489,1756185095974,-166.12,0.00016712,2]
[381397490,1756185095985,-166.12,0.00016712,2]
[381397491,1756185095994,-166.12,0.00016712,2]
[381397492,1756185096004,-166.12,0.00016712,2]
[381397493,1756185096013,-166.12,0.00016712,2]
[381397494,1756185096023,-166.12,0.00016712,2]
[381397495,1756185096032,-166.12,0.00016712,2]
[381397496,1756185096043,-166.12,0.00016712,2]
[381397497,1756185096053,-1252.0,0.00016718,2]
[381397498,1756185096061,-1000.0,0.00016722,2]
[381397499,1756185096071,-190.0,0.0001676,2]
[381397500,1756185096080,-573.0,0.00016776,2]
[381397501,1756185096089,-1000.0,0.00016816,2]
[381397502,1756185096098,-2315.0,0.00016825,2]
[381397503,1756185096107,-500.0,0.00016832,2]
[381397504,1756185096116,-500.0,0.00016832,2]
[381397505,1756185096125,-500.0,0.00016832,2]
[381397506,1756185096135,-500.0,0.00016832,2]
[381397507,1756185096145,-500.0,0.00016832,2]
[381397508,1756185096155,-500.0,0.00016832,2]
[381397509,1756185096164,-500.0,0.00016832,2]
[381397510,1756185096174,-500.0,0.00016832,2]
[381397511,1756185096183,-500.0,0.00016832,2]
[381397512,1756185096193,-903.0,0.00016832,2]
[381397513,1756185096202,-500.0,0.00016832,2]
[381397514,1756185096212,-500.0,0.00016832,2]
[381397515,1756185096221,-500.0,0.00016832,2]
[381397516,1756185096231,-500.0,0.00016832,2]
[381397517,1756185096240,-500.0,0.00016832,2]
[381397518,1756185096249,-150.0,0.00016832,2]
[381397519,1756185096259,-150.095,0.00016832,2]
[381397520,1756185096268,-150.0,0.00016832,2]
[381397521,1756185096282,-150.105,0.00016832,2]
[381397522,1756185096291,-150.0,0.00016832,2]
[381397523,1756185096301,-150.0,0.00016832,2]
[381397524,1756185096310,-150.0,0.00016832,2]
[381397525,1756185096320,-150.178,0.00016832,2]
[381397526,1756185096329,-1256.0,0.00016832,2]
[381397527,1756185096339,-926.0,0.00016832,2]
[381397528,1756185096348,-2500.0,0.00016875,2]
[381397529,1756185096357,-2500.0,0.00016875,2]
[381397530,1756185096367,-208.70110946,0.00016886,2]
[381397531,1756185096376,-600.0,0.000169,6]
[381397532,1756185096387,-2000.0,0.00016911,2]
[381397533,1756185096397,-2000.0,0.00016911,2]
[381397534,1756185096406,-1000.0,0.00016911,2]
[381397535,1756185096416,-400.0,0.00016984,2]
[381397536,1756185096425,-300.0,0.00016985,2]
[381397537,1756185096435,-300.0,0.00016985,2]
[381397538,1756185096446,-300.0,0.00016985,2]
[381397539,1756185096455,-300.0,0.00016985,2]
[381397540,1756185096603,-300.0,0.00016985,2]
[381397541,1756185096612,-300.0,0.00016985,2]
[381397542,1756185096622,-300.0,0.00016985,2]
[381397543,1756185096632,-500.0,0.00016986,2]
[381397544,1756185096641,-500.0,0.00016986,2]
[381397545,1756185096651,-400.0,0.00016986,2]
[381397546,1756185096660,-500.0,0.00016986,2]
[381397547,1756185096670,-400.0,0.00016986,2]
[381397548,1756185096681,-400.0,0.00016986,2]
[381397549,1756185096691,-400.0,0.00016986,2]
[381397550,1756185096701,-504.27031964,0.00016986,2]
[381397551,1756185096715,-400.0,0.00016986,2]
[381397552,1756185096725,-328.92942609,0.00016986,2]
[381397553,1756185096735,-400.0,0.00016986,2]
[381397554,1756185096745,-400.0,0.00016986,2]
[381397555,1756185096755,-400.37037847,0.00016986,2]
[381397556,1756185096764,-400.0,0.00016986,2]
[381397557,1756185096775,-400.0,0.00016986,2]
[381397558,1756185096786,-400.0,0.00016986,2]
[381397559,1756185096796,-400.0,0.00016986,2]
[381397560,1756185096806,-400.0,0.00016986,2]
[381397561,1756185096815,-400.0,0.00016986,2]
[381397562,1756185096825,-323.63012413,0.00016986,2]
[381397563,1756185096835,-400.0,0.00016986,2]
[381397564,1756185096846,-361.19236621,0.00016986,2]
[381397565,1756185096856,-400.0,0.00016986,2]
[381397566,1756185096868,-1266.19,0.00016986,2]
[381397567,1756185096879,-400.0,0.00016986,2]
[381397568,1756185096891,-232.25795639,0.00016986,2]
[381397569,1756185096902,-400.0,0.00016986,2]
[381397570,1756185096913,-400.0,0.00016986,2]
[381397571,1756185096924,-400.0,0.00016986,2]
[381397572,1756185096934,-919.63,0.00016986,2]
[381397573,1756185096944,-400.0,0.00016986,2]
[381397574,1756185096954,-400.0,0.00016986,2]
[381397575,1756185096963,-400.0,0.00016986,2]
[381397576,1756185096974,-745.29,0.00016986,2]
[381397577,1756185096983,-164.5553901,0.00016986,2]
[381397578,1756185096994,-655.13,0.00016986,2]
[381397579,1756185097004,-798.65,0.00016986,2]
[381397580,1756185097014,-1184.86,0.00016986,2]
[381397581,1756185097025,-400.0,0.00016986,2]
[381397582,1756185097035,-400.0,0.00016986,2]
[381397583,1756185097045,-731.86,0.00016986,2]
[381397584,1756185097055,-666.29,0.00016986,2]
[381397585,1756185097064,-1133.88,0.00016986,2]
[381397586,1756185097074,-400.0,0.00016986,2]
[381397587,1756185097084,-400.0,0.00016986,2]
[381397588,1756185097094,-400.0,0.00016986,2]
[381397589,1756185097103,-797.53,0.00016986,2]
[381397590,1756185097113,-400.0,0.00016986,2]
[381397591,1756185097123,-1547.04,0.00016986,2]
[381397592,1756185097132,-1036.12,0.00016986,2]
[381397593,1756185097142,-609.39,0.00016986,2]
[381397594,1756185097151,-400.0,0.00016986,2]
[381397595,1756185097161,-464.99,0.00016986,2]
[381397596,1756185097170,-400.0,0.00016986,2]
[381397597,1756185097180,-400.0,0.00016986,2]
[381397598,1756185097190,-400.0,0.00016986,2]
[381397599,1756185097200,-400.0,0.00016986,2]
[381397600,1756185097210,-827.29,0.00016986,2]
[381397601,1756185097220,-415.22,0.00016986,2]
[381397602,1756185097230,-400.0,0.00016986,2]
[381397603,1756185097241,-400.0,0.00016986,2]
[381397604,1756185097251,-400.0,0.00016986,2]
[381397605,1756185097260,-764.28,0.00016986,2]
[381397606,1756185097270,-336.30873716,0.00016986,2]
[381397607,1756185097281,-1443.29,0.00016986,2]
[381397608,1756185097291,-1136.83,0.00016986,2]
[381397609,1756185097300,-400.0,0.00016986,2]
[381397610,1756185097312,-400.0,0.00016986,2]
[381397611,1756185097334,-660.63,0.00016986,2]
[381397612,1756185097355,-617.5,0.00016986,2]
[381397613,1756185097378,-764.69,0.00016986,2]
[381397614,1756185097394,-400.0,0.00016986,2]
[381397615,1756185097404,-400.0,0.00016986,2]
[381397616,1756185097415,-400.0,0.00016986,2]
[381397617,1756185097425,-541.83,0.00016986,2]
[381397618,1756185097435,-400.0,0.00016986,2]
[381397619,1756185097446,-1159.27,0.00016986,2]
[381397620,1756185097457,-729.09,0.00016986,2]
[381397621,1756185097466,-418.16,0.00016986,2]
[381397622,1756185097477,-400.0,0.00016986,2]
[381397623,1756185097487,-647.47,0.00016986,2]
[381397624,1756185097497,-415.3,0.00016986,2]
[381397625,1756185097507,-444.7,0.00016986,2]
[381397626,1756185097517,-477.54,0.00016986,2]
[381397627,1756185097530,-1112.42,0.00016986,2]
[381397628,1756185097552,-1195.41,0.00016986,2]
[381397629,1756185097574,-400.20001774,0.00016986,2]
[381397630,1756185097593,-866.18,0.00016986,2]
[381397631,1756185097603,-1119.37,0.00016986,2]
[381397632,1756185097612,-400.0,0.00016986,2]
[381397633,1756185097621,-621.68,0.00016986,2]
[381397634,1756185097631,-400.0,0.00016986,2]
[381397635,1756185097640,-587.15,0.00016986,2]
[381397636,1756185097650,-400.0,0.00016986,2]
[381397637,1756185097659,-400.0,0.00016986,2]
[381397638,1756185097669,-465.78,0.00016986,2]
[381397639,1756185097679,-448.52,0.00016986,2]
[381397640,1756185097688,-400.0,0.00016986,2]
[381397641,1756185097698,-2001.47,0.00016986,2]
[381397642,1756185097711,-608.27,0.00016986,2]
[381397643,1756185097720,-400.0,0.00016986,2]
[381397644,1756185097730,-1243.18,0.00016986,2]
[381397645,1756185097739,-916.84,0.00016986,2]
[381397646,1756185097749,-400.0,0.00016986,2]
[381397647,1756185097758,-400.0,0.00016986,2]
[381397648,1756185097768,-469.09,0.00016986,2]
[381397649,1756185097779,-400.0,0.00016986,2]
[381397650,1756185097790,-447.27,0.00016986,2]
[381397651,1756185097800,-400.0,0.00016986,2]
[381397652,1756185097810,-400.0,0.00016986,2]
[381397653,1756185097819,-474.53,0.00016986,2]
[381397654,1756185097828,-921.44,0.00016986,2]
[381397655,1756185097838,-782.75,0.00016986,2]
[381397656,1756185097848,-1096.56,0.00016986,2]
[381397657,1756185097858,-400.0,0.00016986,2]
[381397658,1756185097867,-726.95,0.00016986,2]
[381397659,1756185097877,-400.44,0.00016986,2]
[381397660,1756185097886,-815.91,0.00016986,2]
[381397661,1756185097897,-442.4,0.00016986,2]
[381397662,1756185097908,-629.92,0.00016986,2]
[381397663,1756185097918,-400.0,0.00016986,2]
[381397664,1756185097928,-402.01,0.00016986,2]
[381397665,1756185097939,-400.0,0.00016986,2]
[381397666,1756185097949,-428.84,0.00016986,2]
[381397667,1756185097959,-752.25,0.00016986,2]
[381397668,1756185097969,-1048.98,0.00016986,2]
[381397669,1756185097980,-400.0,0.00016986,2]
[381397670,1756185097990,-400.0,0.00016986,2]
[381397671,1756185097999,-515.52,0.00016986,2]
[381397672,1756185098009,-564.67,0.00016986,2]
[381397673,1756185098019,-747.57,0.00016986,2]
[381397674,1756185098029,-400.0,0.00016986,2]
[381397675,1756185098039,-400.0,0.00016986,2]
[381397676,1756185098049,-272.80493403,0.00016986,2]
[381397677,1756185098060,-400.0,0.00016986,2]
[381397678,1756185098070,-442.88,0.00016986,2]
[381397679,1756185098080,-686.01,0.00016986,2]
[381397680,1756185098091,-400.0,0.00016986,2]
[381397681,1756185098100,-812.7,0.00016986,2]
[381397682,1756185098110,-400.0,0.00016986,2]
[381397683,1756185098119,-410.65,0.00016986,2]
[381397684,1756185098129,-809.62,0.00016986,2]
[381397685,1756185098138,-400.0,0.00016986,2]
[381397686,1756185098147,-681.47,0.00016986,2]
[381397687,1756185098157,-668.22,0.00016986,2]
[381397688,1756185098168,-532.58,0.00016986,2]
[381397689,1756185098179,-400.0,0.00016986,2]
[381397690,1756185098191,-400.0,0.00016986,2]
[381397691,1756185098201,-460.76,0.00016986,2]
[381397692,1756185098213,-749.37,0.00016986,2]
[381397693,1756185098223,-400.0,0.00016986,2]
[381397694,1756185098232,-664.98,0.00016986,2]
[381397695,1756185098243,-400.0,0.00016986,2]
[381397696,1756185098253,-956.41,0.00016986,2]
[381397697,1756185098262,-641.5,0.00016986,2]
[381397698,1756185098272,-400.0,0.00016986,2]
[381397699,1756185098282,-1137.36,0.00016986,2]
[381397700,1756185098292,-400.0,0.00016986,2]
[381397701,1756185098303,-416.62,0.00016986,2]
[381397702,1756185098313,-400.0,0.00016986,2]
[381397703,1756185098324,-723.42,0.00016986,2]
[381397704,1756185098333,-400.0,0.00016986,2]
[381397705,1756185098343,-1015.47,0.00016986,2]
[381397706,1756185098354,-400.0,0.00016986,2]
[381397707,1756185098364,-459.3,0.00016986,2]
[381397708,1756185098374,-665.79,0.00016986,2]
[381397709,1756185098385,-1742.8,0.00016986,2]
[381397710,1756185098395,-400.0,0.00016986,2]
[381397711,1756185098406,-448.01,0.00016986,2]
[381397712,1756185098416,-400.0,0.00016986,2]
[381397713,1756185098425,-854.77,0.00016986,2]
[381397714,1756185098436,-644.5,0.00016986,2]
[381397715,1756185098446,-193.89371508,0.00016986,2]
[381397716,1756185098455,-1214.11,0.00016986,2]
[381397717,1756185098465,-1098.15,0.00016986,2]
[381397718,1756185098474,-400.0,0.00016986,2]
[381397719,1756185098484,-600.46,0.00016986,2]
[381397720,1756185098493,-630.3,0.00016986,2]
[381397721,1756185098502,-875.07,0.00016986,2]
[381397722,1756185098512,-598.97,0.00016986,2]
[381397723,1756185098521,-400.0,0.00016986,2]
[381397724,1756185098532,-400.0,0.00016986,2]
[381397725,1756185098541,-400.0,0.00016986,2]
[381397726,1756185098551,-723.87,0.00016986,2]
[381397727,1756185098560,-400.0,0.00016986,2]
[381397728,1756185098570,-400.0,0.00016986,2]
[381397729,1756185098579,-849.33,0.00016986,2]
[381397730,1756185098588,-910.91,0.00016986,2]
[381397731,1756185098598,-886.48,0.00016986,2]
[381397732,1756185098609,-594.24,0.00016986,2]
[381397733,1756185098619,-423.36,0.00016986,2]
[381397734,1756185098630,-1012.16,0.00016986,2]
[381397735,1756185098640,-400.0,0.00016986,2]
[381397736,1756185098649,-400.0,0.00016986,2]
[381397737,1756185098658,-985.46,0.00016986,2]
[381397738,1756185098667,-445.79,0.00016986,2]
[381397739,1756185098677,-533.21,0.00016986,2]
[381397740,1756185098687,-401.68,0.00016986,2]
[381397741,1756185098696,-400.0,0.00016986,2]
[381397742,1756185098709,-400.0,0.00016986,2]
[381397743,1756185098720,-400.0,0.00016986,2]
[381397744,1756185098731,-400.0,0.00016986,2]
[381397745,1756185098741,-1383.65,0.00016986,2]
[381397746,1756185098754,-400.0,0.00016986,2]
[381397747,1756185098764,-400.0,0.00016986,2]
[381397748,1756185098776,-400.0,0.00016986,2]
[381397749,1756185098786,-400.0,0.00016986,2]
[381397750,1756185098797,-400.0,0.00016986,2]
[381397751,1756185098806,-480.16,0.00016986,2]
[381397752,1756185098815,-400.0,0.00016986,2]
[381397753,1756185098825,-400.0,0.00016986,2]
[381397754,1756185098834,-400.0,0.00016986,2]
[381397755,1756185098843,-467.4,0.00016986,2]
[381397756,1756185099197,-627.36,0.00016986,2]
[381397757,1756185099224,-400.0,0.00016986,2]
[381397758,1756185099234,-400.0,0.00016986,2]
[381397759,1756185099244,-400.0,0.00016986,2]
[381397760,1756185099253,-766.2,0.00016986,2]
[381397761,1756185099263,-400.0,0.00016986,2]
[381397762,1756185099272,-1545.02,0.00016986,2]
[381397763,1756185099283,-772.35,0.00016986,2]
[381397764,1756185099292,-498.09,0.00016986,2]
[381397765,1756185099301,-400.0,0.00016986,2]
[381397766,1756185099311,-400.0,0.00016986,2]
[381397767,1756185099320,-560.42,0.00016986,2]
[381397768,1756185099329,-400.0,0.00016986,2]
[381397769,1756185099339,-420.61,0.00016986,2]
[381397770,1756185099348,-400.0,0.00016986,2]
[381397771,1756185099358,-400.0,0.00016986,2]
[381397772,1756185099368,-400.0,0.00016986,2]
[381397773,1756185099378,-757.83,0.00016986,2]
[381397774,1756185099389,-400.0,0.00016986,2]
[381397775,1756185099399,-534.78,0.00016986,2]
[381397776,1756185099410,-444.28,0.00016986,2]
[381397777,1756185099419,-558.67,0.00016986,2]
[381397778,1756185099429,-1022.04,0.00016986,2]
[381397779,1756185099439,-400.0,0.00016986,2]
[381397780,1756185099448,-400.0,0.00016986,2]
[381397781,1756185099459,-400.0,0.00016986,2]
[381397782,1756185099468,-675.94,0.00016986,2]
[381397783,1756185099480,-400.0,0.00016986,2]
[381397784,1756185099490,-400.0,0.00016986,2]
[381397785,1756185099500,-400.0,0.00016986,2]
[381397786,1756185099510,-1280.71,0.00016986,2]
[381397787,1756185099519,-400.0,0.00016986,2]
[381397788,1756185099531,-400.0,0.00016986,2]
[381397789,1756185099540,-400.0,0.00016986,2]
[381397790,1756185099550,-485.64,0.00016986,2]
[381397791,1756185099559,-400.0,0.00016986,2]
[381397792,1756185099569,-400.0,0.00016986,2]
[381397793,1756185099579,-400.0,0.00016986,2]
[381397794,1756185099589,-400.0,0.00016986,2]
[381397795,1756185099598,-400.0,0.00016986,2]
[381397796,1756185099608,-610.72,0.00016986,2]
[381397797,1756185099618,-400.0,0.00016986,2]
[381397798,1756185099628,-477.47,0.00016986,2]
[381397799,1756185099637,-400.0,0.00016986,2]
[381397800,1756185099646,-540.8,0.00016986,2]
[381397801,1756185099656,-1703.78,0.00016986,2]
[381397802,1756185099666,-854.07,0.00016986,2]
[381397803,1756185099675,-866.97,0.00016986,2]
[381397804,1756185099684,-1769.0,0.00016986,2]
[381397805,1756185099693,-1153.71,0.00016986,2]
[381397806,1756185099707,-400.0,0.00016986,2]
[381397807,1756185099716,-400.0,0.00016986,2]
[381397808,1756185099726,-688.2,0.00016986,2]
[381397809,1756185099735,-400.0,0.00016986,2]
[381397810,1756185099746,-400.0,0.00016986,2]
[381397811,1756185099756,-2157.11,0.00016986,2]
[381397812,1756185099766,-1257.18,0.00016986,2]
[381397813,1756185099775,-778.45,0.00016986,2]
[381397814,1756185099786,-400.0,0.00016986,2]
[381397815,1756185099795,-486.66,0.00016986,2]
[381397816,1756185099805,-400.0,0.00016986,2]
[381397817,1756185099814,-412.33,0.00016986,2]
[381397818,1756185099824,-589.71,0.00016986,2]
[381397819,1756185099834,-1253.61,0.00016986,2]
[381397820,1756185099844,-1000.0,0.00016986,2]
[381397821,1756185099854,-400.0,0.00016986,2]
[381397822,1756185099865,-737.0,0.00016986,2]
[381397823,1756185099875,-400.0,0.00016986,2]
[381397824,1756185099885,-400.0,0.00016986,2]
[381397825,1756185099895,-400.0,0.00016986,2]
[381397826,1756185099906,-400.0,0.00016986,2]
[381397827,1756185099915,-799.25,0.00016986,2]
[381397828,1756185099926,-2027.77,0.00016986,2]
[381397829,1756185099936,-400.0,0.00016986,2]
[381397830,1756185099945,-721.15,0.00016986,2]